fUST/lending_fUST_20250520
["ID","MTS","AMOUNT","RATE_DAILY","PERIOD"]
[361750219,1747755051733,-158.40173,0.0002139,2]
[361750220,1747755051744,-500.0,0.00021425,2]
[361750221,1747755051754,-52216.20709364,0.00021427,2]
[361750222,1747755051764,-151.0,0.00021427,2]
[361750223,1747755051775,-151.0,0.00021427,2]
[361750224,1747755051785,-591.528255,0.00021427,2]
[361750225,1747755051795,-591.528255,0.00021427,2]
[361750226,1747755051805,-151.0,0.00021427,2]
[361750227,1747755051814,-151.0,0.00021427,2]
[361750228,1747755051825,-652.261682,0.00021427,2]
[361750229,1747755051835,-652.261682,0.00021427,2]
[361750230,1747755051845,-1100.229447,0.00021427,2]
[361750231,1747755051855,-1100.229447,0.00021427,2]
[361750232,1747755051865,-4000.0,0.00021429,4]
[361750233,1747755051876,-1000.0,0.0002149,2]
[361750234,1747755051886,-1000.0,0.0002149,2]
[361750235,1747755051895,-561.61893351,0.0002149,2]
[361750236,1747755051905,-1200.0,0.0002149,2]
[361750237,1747755051915,-1000.0,0.0002149,2]
[361750238,1747755051925,-1000.0,0.0002149,2]
[361750239,1747755051935,-1030.13435197,0.0002149,2]
[361750240,1747755051947,-1000.0,0.0002149,2]
[361750241,1747755051957,-1000.0,0.0002149,2]
[361750242,1747755051967,-1079.752602,0.000215,2]
[361750243,1747755051977,-1000.0,0.00021521,2]
[361750244,1747755051987,-1000.0,0.00021521,2]
[361750245,1747755051998,-1000.0,0.00021521,2]
[361750246,1747755052008,-1000.0,0.00021521,2]
[361750247,1747755052018,-1000.0,0.00021521,2]
[361750248,1747755052028,-1000.0,0.00021521,2]
[361750249,1747755052038,-1000.0,0.00021521,2]
[361750250,1747755052048,-1000.0,0.00021521,2]
[361750251,1747755052059,-1000.0,0.00021521,2]
[361750252,1747755052069,-566.99168782,0.00021521,2]
[361750253,1747755052080,-12500.0,0.00021537,2]
[361750254,1747755052091,-151.0,0.00021538,2]
[361750255,1747755052101,-151.0,0.00021538,2]
[361750256,1747755052111,-243.960544,0.00021538,2]
[361750257,1747755052122,-243.960544,0.00021538,2]
[361750258,1747755052132,-2500.0,0.00021541,2]
[361750259,1747755052142,-151.0,0.00021546,2]
[361750260,1747755052152,-160.054512,0.00021546,2]
[361750261,1747755052161,-160.054512,0.00021546,2]
[361750262,1747755052171,-384.81183,0.00021546,2]
[361750263,1747755052180,-384.811836,0.00021546,2]
[361750264,1747755052192,-12500.0,0.00021546,2]
[361750265,1747755052203,-12500.0,0.00021555,2]
[361750266,1747755052213,-6242.69140111,0.00021555,5]
[361750267,1747755052223,-12500.0,0.00021564,2]
[361750268,1747755052232,-12500.0,0.00021573,2]
[361750269,1747755052241,-12500.0,0.00021581,2]
[361750270,1747755052251,-200.0,0.0002159,4]
[361750271,1747755052260,-151.0,0.0002159,2]
[361750272,1747755052269,-591.528255,0.0002159,2]
[361750273,1747755052280,-591.528255,0.0002159,2]
[361750274,1747755052289,-151.0,0.0002159,2]
[361750275,1747755052300,-151.0,0.0002159,2]
[361750276,1747755052309,-12500.0,0.0002159,2]
[361750277,1747755052320,-151.0,0.00021599,2]
[361750278,1747755052330,-151.0,0.00021599,2]
[361750279,1747755052340,-151.0,0.00021599,2]
[361750280,1747755052350,-243.960544,0.00021599,2]
[361750281,1747755052363,-243.960544,0.00021599,2]
[361750282,1747755052376,-652.261682,0.00021599,2]
[361750283,1747755052386,-652.26168075,0.00021599,2]
[361750284,1747755052396,-1100.229447,0.00021599,2]
[361750285,1747755052406,-1100.229441,0.00021599,2]
[361750286,1747755052416,-12500.0,0.00021599,2]
[361750287,1747755052426,-12500.0,0.00021608,2]
[361750288,1747755052437,-151.0,0.00021608,2]
[361750289,1747755052447,-155.051486,0.00021608,2]
[361750290,1747755052457,-12500.0,0.00021617,2]
[361750291,1747755052466,-12500.0,0.00021617,2]
[361750292,1747755052476,-151.0,0.00021617,2]
[361750293,1747755052485,-160.054512,0.00021617,2]
[361750294,1747755052495,-160.054512,0.00021617,2]
[361750295,1747755052504,-151.0,0.00021625,2]
[361750296,1747755052514,-12500.0,0.00021625,2]
[361750297,1747755052524,-12500.0,0.00021625,2]
[361750298,1747755052534,-151.0,0.00021634,2]
[361750299,1747755052543,-151.0,0.00021634,2]
[361750300,1747755052553,-12500.0,0.00021634,2]
[361750301,1747755052563,-12500.0,0.00021634,2]
[361750302,1747755052574,-3818.71982069,0.00021643,2]
[361750303,1747755052584,-12500.0,0.00021643,2]
[361750304,1747755052594,-151.0,0.00021643,2]
[361750305,1747755052603,-151.0,0.00021643,2]
[361750306,1747755052613,-434.61,0.00021643,2]
[361750307,1747755052622,-443.68,0.00021643,2]
[361750308,1747755052633,-12500.0,0.00021643,2]
[361750309,1747755052642,-159.49964,0.00021643,2]
[361750310,1747755052652,-591.528255,0.00021643,2]
[361750311,1747755052662,-591.52825,0.00021643,2]
[361750312,1747755052672,-151.0,0.00021643,2]
[361750313,1747755052682,-1103.97,0.00021643,2]
[361750314,1747755052692,-786.0,0.00021643,2]
[361750315,1747755052702,-461.04,0.00021643,2]
[361750316,1747755052712,-485.08,0.00021643,2]
[361750317,1747755052721,-430.0,0.00021643,2]
[361750318,1747755052731,-883.66,0.00021643,2]
[361750319,1747755052740,-518.35,0.00021643,2]
[361750320,1747755052750,-718.51,0.00021643,2]
[361750321,1747755052759,-5283.52,0.00021643,2]
[361750322,1747755052770,-430.0,0.00021643,2]
[361750323,1747755052779,-430.0,0.00021643,2]
[361750324,1747755052789,-980.83,0.00021643,2]
[361750325,1747755052799,-3236.06,0.00021643,2]
[361750326,1747755052808,-430.0,0.00021643,2]
[361750327,1747755052818,-430.0,0.00021643,2]
[361750328,1747755052828,-1298.05,0.00021643,2]
[361750329,1747755052837,-999.51,0.00021643,2]
[361750330,1747755052847,-1159.8,0.00021643,2]
[361750331,1747755052857,-939.83,0.00021643,2]
[361750332,1747755052866,-671.82,0.00021643,2]
[361750333,1747755052876,-298.027569,0.00021698,2]
[361750334,1747755052886,-243.960544,0.00021698,2]
[361750335,1747755052895,-243.960544,0.00021698,2]
[361750336,1747755052904,-1269.28590593,0.00021722,2]
[361750337,1747755052914,-151.0,0.00021783,2]
[361750338,1747755052923,-151.0,0.00021783,2]
[361750339,1747755052934,-151.0,0.00021783,2]
[361750340,1747755052943,-1000.0,0.00021836,2]
[361750341,1747755052953,-1000.0,0.00021836,2]
[361750342,1747755052962,-1000.0,0.00021836,2]
[361750343,1747755052971,-1000.0,0.00021836,2]
[361750344,1747755052981,-1000.0,0.00021836,2]
[361750345,1747755052990,-6242.69140111,0.00021866,6]
[361750346,1747755053000,-151.0,0.00021917,2]
[361750347,1747755053009,-151.0,0.00021917,2]
[361750348,1747755053018,-151.0,0.00021917,2]
[361750349,1747755053028,-160.054512,0.00021917,2]
[361750350,1747755053037,-160.054512,0.00021917,2]
[361750351,1747755053047,-434.61,0.00021917,2]
[361750352,1747755053056,-430.0,0.00021917,2]
[361750353,1747755053065,-430.0,0.00021917,2]
[361750354,1747755053074,-443.68,0.00021917,2]
[361750355,1747755053084,-430.0,0.00021917,2]
[361750356,1747755053093,-430.0,0.00021917,2]
[361750357,1747755053102,-430.0,0.00021917,2]
[361750358,1747755053112,-430.0,0.00021917,2]
[361750359,1747755053121,-430.0,0.00021917,2]
[361750360,1747755053132,-430.0,0.00021917,2]
[361750361,1747755053141,-430.0,0.00021917,2]
[361750362,1747755053151,-430.0,0.00021917,2]
[361750363,1747755053160,-430.0,0.00021917,2]
[361750364,1747755053169,-430.0,0.00021917,2]
[361750365,1747755053179,-430.0,0.00021917,2]
[361750366,1747755053188,-430.0,0.00021917,2]
[361750367,1747755053197,-430.0,0.00021917,2]
[361750368,1747755053206,-430.0,0.00021917,2]
[361750369,1747755053216,-430.0,0.00021917,2]
[361750370,1747755053225,-430.0,0.00021917,2]
[361750371,1747755053235,-430.0,0.00021917,2]
[361750372,1747755053244,-430.0,0.00021917,2]
[361750373,1747755053253,-433.10359134,0.00021917,2]
[361750374,1747755053262,-500.0,0.00021917,2]
[361750375,1747755053272,-500.0,0.00021917,2]
[361750376,1747755053281,-500.0,0.00021917,2]
[361750377,1747755053290,-500.0,0.00021917,2]
[361750378,1747755053299,-500.0,0.00021917,2]
[361750379,1747755053309,-500.0,0.00021917,2]
[361750380,1747755053318,-500.0,0.00021917,2]
[361750381,1747755053327,-500.0,0.00021917,2]
[361750382,1747755053337,-349.473336,0.00021917,2]
[361750383,1747755053347,-1103.97,0.00021917,2]
[361750384,1747755053360,-317.56,0.00021917,2]
[361750385,1747755053372,-317.56,0.00021917,2]
[361750386,1747755053383,-317.56,0.00021917,2]
[361750387,1747755053393,-317.56,0.00021917,2]
[361750388,1747755053403,-317.56,0.00021917,2]
[361750389,1747755053415,-317.56,0.00021917,2]
[361750390,1747755053425,-317.56,0.00021917,2]
[361750391,1747755053437,-317.56,0.00021917,2]
[361750392,1747755053448,-317.56,0.00021917,2]
[361750393,1747755053459,-317.56,0.00021917,2]
[361750394,1747755053468,-317.56,0.00021917,2]
[361750395,1747755053479,-317.56,0.00021917,2]
[361750396,1747755053488,-317.56,0.00021917,2]
[361750397,1747755053499,-317.56,0.00021917,2]
[361750398,1747755053509,-317.56,0.00021917,2]
[361750399,1747755053519,-317.56,0.00021917,2]
[361750400,1747755053530,-317.56,0.00021917,2]
[361750401,1747755053540,-317.56,0.00021917,2]
[361750402,1747755053550,-317.56,0.00021917,2]
[361750403,1747755053560,-317.56,0.00021917,2]
[361750404,1747755053570,-317.56,0.00021917,2]
[361750405,1747755053580,-786.0,0.00021917,2]
[361750406,1747755053590,-461.04,0.00021917,2]
[361750407,1747755053601,-485.08,0.00021917,2]
[361750408,1747755053613,-430.0,0.00021917,2]
[361750409,1747755053626,-500.0,0.00021917,2]
[361750410,1747755053638,-500.0,0.00021917,2]
[361750411,1747755053647,-500.0,0.00021917,2]
[361750412,1747755053659,-500.0,0.00021917,2]
[361750413,1747755053668,-445.63720593,0.00021917,2]
[361750414,1747755053679,-883.66,0.00021917,2]
[361750415,1747755053691,-568.46,0.00021917,2]
[361750416,1747755053702,-568.46,0.00021917,2]
[361750417,1747755053713,-568.46,0.00021917,2]
[361750418,1747755053723,-568.46,0.00021917,2]
[361750419,1747755053733,-568.46,0.00021917,2]
[361750420,1747755053743,-568.46,0.00021917,2]
[361750421,1747755053753,-568.46,0.00021917,2]
[361750422,1747755053763,-568.46,0.00021917,2]
[361750423,1747755053773,-568.46,0.00021917,2]
[361750424,1747755053783,-568.46,0.00021917,2]
[361750425,1747755053793,-568.46,0.00021917,2]
[361750426,1747755053803,-568.46,0.00021917,2]
[361750427,1747755053813,-568.46,0.00021917,2]
[361750428,1747755053856,-568.46,0.00021917,2]
[361750429,1747755053866,-568.46,0.00021917,2]
[361750430,1747755053876,-568.46,0.00021917,2]
[361750431,1747755053886,-568.46,0.00021917,2]
[361750432,1747755053895,-568.46,0.00021917,2]
[361750433,1747755053904,-568.46,0.00021917,2]
[361750434,1747755053913,-568.46,0.00021917,2]
[361750435,1747755053923,-568.46,0.00021917,2]
[361750436,1747755053933,-518.35,0.00021917,2]
[361750437,1747755053942,-718.51,0.00021917,2]
[361750438,1747755053952,-5283.52,0.00021917,2]
[361750439,1747755053961,-430.0,0.00021917,2]
[361750440,1747755053971,-430.0,0.00021917,2]
[361750441,1747755053981,-980.83,0.00021917,2]
[361750442,1747755053990,-3236.06,0.00021917,2]
[361750443,1747755054001,-476.1,0.00021917,2]
[361750444,1747755054011,-332.93066571,0.00021917,2]
[361750445,1747755054020,-1298.05,0.00021917,2]
[361750446,1747755054030,-999.51,0.00021917,2]
[361750447,1747755054039,-1159.8,0.00021917,2]
[361750448,1747755054049,-939.83,0.00021917,2]
[361750449,1747755054059,-671.82,0.00021917,2]
[361750450,1747755054070,-155.0,0.00021917,2]
[361750451,1747755054079,-987.6123874,0.00021918,7]
[361750452,1747755054089,-151.0,0.00021918,2]
[361750453,1747755054099,-151.0,0.00021918,2]
[361750454,1747755054110,-151.0,0.00021918,2]
[361750455,1747755054120,-151.0,0.00021918,2]
[361750456,1747755054131,-151.0,0.00021918,2]
[361750457,1747755054141,-151.0,0.00021918,2]
[361750458,1747755054151,-151.0,0.00021918,2]
[361750459,1747755054159,-151.0,0.00021918,2]
[361750460,1747755054169,-151.0,0.00021918,2]
[361750461,1747755054178,-151.0,0.00021918,2]
[361750462,1747755054186,-151.0,0.00021918,2]
[361750463,1747755054196,-151.0,0.00021918,2]
[361750464,1747755054206,-176.65814,0.00021918,2]
[361750465,1747755054215,-152.0,0.00021918,2]
[361750466,1747755054225,-152.0,0.00021918,2]
[361750467,1747755054235,-152.0,0.00021918,2]
[361750468,1747755054245,-152.0,0.00021918,2]
[361750469,1747755054255,-152.0,0.00021918,2]
[361750470,1747755054264,-152.0,0.00021918,2]
[361750471,1747755054274,-152.0,0.00021918,2]
[361750472,1747755054283,-152.0,0.00021918,2]
[361750473,1747755054293,-152.0,0.00021918,2]
[361750474,1747755054302,-152.0,0.00021918,2]
[361750475,1747755054311,-152.0,0.00021918,2]
[361750476,1747755054321,-152.0,0.00021918,2]
[361750477,1747755054330,-152.0,0.00021918,2]
[361750478,1747755054339,-152.0,0.00021918,2]
[361750479,1747755054349,-152.0,0.00021918,2]
[361750480,1747755054361,-152.0,0.00021918,2]
[361750481,1747755054371,-152.0,0.00021918,2]
[361750482,1747755054382,-152.0,0.00021918,2]
[361750483,1747755054392,-152.0,0.00021918,2]
[361750484,1747755054403,-152.0,0.00021918,2]
[361750485,1747755054412,-152.0,0.00021918,2]
[361750486,1747755054422,-152.0,0.00021918,2]
[361750487,1747755054433,-152.0,0.00021918,2]
[361750488,1747755054442,-152.0,0.00021918,2]
[361750489,1747755054452,-152.0,0.00021918,2]
[361750490,1747755054462,-152.0,0.00021918,2]
[361750491,1747755054471,-152.0,0.00021918,2]
[361750492,1747755054481,-152.0,0.00021918,2]
[361750493,1747755054490,-152.0,0.00021918,2]
[361750494,1747755054499,-152.0,0.00021918,2]
[361750495,1747755054509,-152.0,0.00021918,2]
[361750496,1747755054519,-152.0,0.00021918,2]
[361750497,1747755054529,-152.0,0.00021918,2]
[361750498,1747755054539,-152.0,0.00021918,2]
[361750499,1747755054548,-152.0,0.00021918,2]
[361750500,1747755054557,-152.0,0.00021918,2]
[361750501,1747755054567,-152.0,0.00021918,2]
[361750502,1747755054576,-152.0,0.00021918,2]
[361750503,1747755054586,-152.0,0.00021918,2]
[361750504,1747755054596,-152.0,0.00021918,2]
[361750505,1747755054605,-152.0,0.00021918,2]
[361750506,1747755054615,-152.0,0.00021918,2]
[361750507,1747755054625,-152.0,0.00021918,2]
[361750508,1747755054634,-152.0,0.00021918,2]
[361750509,1747755054644,-269.44133094,0.00021918,2]
[361750510,1747755054653,-152.0,0.00021918,2]
[361750511,1747755054663,-152.0,0.00021918,2]
[361750512,1747755054673,-152.0,0.00021918,2]
[361750513,1747755054683,-152.0,0.00021918,2]
[361750514,1747755054692,-152.0,0.00021918,2]
[361750515,1747755054703,-152.0,0.00021918,2]
[361750516,1747755054712,-151.0,0.00021918,7]
[361750517,1747755054722,-1000.0,0.00021918,2]
[361750518,1747755054732,-216.64890695,0.00021973,2]
[361750519,1747755054741,-5561.11863276,0.00021973,2]
[361750520,1747755054751,-151.0,0.00021973,7]
[361750521,1747755054761,-160.0,0.00022,4]
[361750522,1747755054771,-349.58685094,0.00022,2]
[361750523,1747755054781,-1174.0,0.00022,15]
[361750524,1747755054792,-500.0,0.00022,2]
[361750525,1747755054802,-402.0,0.00022,2]
[361750526,1747755054812,-1000.0,0.00022,22]
[361750527,1747755054822,-1000.0,0.00022,2]
[361750528,1747755054831,-1500.0,0.00022038,2]
[361750529,1747755054841,-1500.0,0.00022038,2]
[361750530,1747755054851,-1580.72006505,0.00022038,2]
[361750531,1747755054861,-1800.0,0.00022038,2]
[361750532,1747755054876,-1500.0,0.00022038,2]
[361750533,1747755054886,-1500.0,0.00022038,2]
[361750534,1747755054897,-1549.82632532,0.00022038,2]
[361750535,1747755054907,-989.62499438,0.00022068,2]
[361750536,1747755054917,-1500.0,0.00022068,2]
[361750537,1747755054926,-1500.0,0.00022068,2]
[361750538,1747755054936,-1500.0,0.00022068,2]
[361750539,1747755054946,-1500.0,0.00022068,2]
[361750540,1747755054956,-1500.0,0.00022068,2]
[361750541,1747755054966,-1156.26906826,0.00022068,2]
[361750542,1747755054976,-1500.0,0.00022068,2]
[361750543,1747755054986,-1500.0,0.00022068,2]
[361750544,1747755054996,-160.0,0.00022157,6]
[361750545,1747755055006,-6242.69140111,0.00022176,6]
[361750546,1747755055016,-151.0,0.00022176,7]
[361750547,1747755055027,-243.960544,0.00022176,7]
[361750548,1747755055037,-243.960536,0.00022176,7]
[361750549,1747755055048,-151.0,0.00022191,7]
[361750550,1747755055058,-434.61,0.00022191,2]
[361750551,1747755055067,-443.68,0.00022191,2]
[361750552,1747755055076,-1103.97,0.00022191,2]
[361750553,1747755055086,-317.56,0.00022191,2]
[361750554,1747755055096,-786.0,0.00022191,2]
[361750555,1747755055106,-461.04,0.00022191,2]
[361750556,1747755055117,-259.44389727,0.00022191,2]
[361750557,1747755055127,-485.08,0.00022191,2]
[361750558,1747755055138,-883.66,0.00022191,2]
[361750559,1747755055147,-568.46,0.00022191,2]
[361750560,1747755055157,-518.35,0.00022191,2]
[361750561,1747755055167,-718.51,0.00022191,2]
[361750562,1747755055178,-5283.52,0.00022191,2]
[361750563,1747755055188,-430.0,0.00022191,2]
[361750564,1747755055198,-430.0,0.00022191,2]
[361750565,1747755055208,-980.83,0.00022191,2]
[361750566,1747755055218,-3236.06,0.00022191,2]
[361750567,1747755055227,-1298.05,0.00022191,2]
[361750568,1747755055237,-999.51,0.00022191,2]
[361750569,1747755055247,-1159.8,0.00022191,2]
[361750570,1747755055257,-939.83,0.00022191,2]
[361750571,1747755055267,-671.82,0.00022191,2]
[361750572,1747755055277,-5000.0,0.00022192,2]
[361750573,1747755055286,-153.0,0.00022247,2]
[361750574,1747755055296,-153.0,0.00022247,2]
[361750575,1747755055306,-236.535339,0.00022247,2]
[361750576,1747755055316,-153.0,0.00022247,2]
[361750577,1747755055326,-1152.0,0.00022258,2]
[361750578,1747755055335,-1152.0,0.00022258,2]
[361750579,1747755055344,-1091.47,0.0002229,3]
[361750580,1747755055354,-151.0,0.00022331,7]
[361750581,1747755055367,-151.0,0.00022331,7]
[361750582,1747755055377,-1500.0,0.00022384,2]
[361750583,1747755055387,-744.81262462,0.00022384,2]
[361750584,1747755055396,-538.93481113,0.00022384,2]
[361750585,1747755055406,-1500.0,0.00022384,2]
[361750586,1747755055415,-1500.0,0.00022384,2]
[361750587,1747755055425,-1091.47,0.0002239,3]
[361750588,1747755055434,-500.83867963,0.00022417,5]
[361750589,1747755055444,-588.85841343,0.00022425,2]
[361750590,1747755055455,-434.61,0.00022465,2]
[361750591,1747755055464,-443.68,0.00022465,2]
[361750592,1747755055474,-1103.97,0.00022465,2]
[361750593,1747755055483,-317.56,0.00022465,2]
[361750594,1747755055493,-786.0,0.00022465,2]
[361750595,1747755055503,-461.04,0.00022465,2]
[361750596,1747755055513,-485.08,0.00022465,2]
[361750597,1747755055523,-883.66,0.00022465,2]
[361750598,1747755055533,-568.46,0.00022465,2]
[361750599,1747755055543,-518.35,0.00022465,2]
[361750600,1747755055553,-718.51,0.00022465,2]
[361750601,1747755055563,-5283.52,0.00022465,2]
[361750602,1747755055572,-430.0,0.00022465,2]
[361750603,1747755055582,-560.62,0.00022465,2]
[361750604,1747755055591,-980.83,0.00022465,2]
[361750605,1747755055601,-3236.06,0.00022465,2]
[361750606,1747755055610,-1298.05,0.00022465,2]
[361750607,1747755055620,-999.51,0.00022465,2]
[361750608,1747755055629,-1159.8,0.00022465,2]
[361750609,1747755055639,-939.83,0.00022465,2]
[361750610,1747755055649,-671.82,0.00022465,2]
[361750611,1747755055658,-923.94770277,0.00022466,2]
[361750612,1747755055668,-6242.69140111,0.00022486,7]
[361750613,1747755055678,-1091.47,0.0002249,5]
[361750614,1747755055687,-280.869062,0.000225,7]
[361750615,1747755055697,-160.054512,0.000225,7]
[361750616,1747755055707,-160.054512,0.000225,7]
[361750617,1747755055716,-1000.0,0.000225,2]
[361750618,1747755055726,-351.4340298,0.00022548,2]
[361750619,1747755055737,-1546.55287662,0.00022586,2]
[361750620,1747755055747,-2000.0,0.00022586,2]
[361750621,1747755055758,-2400.0,0.00022586,2]
[361750622,1747755055768,-379.89735844,0.00022586,2]
[361750623,1747755055778,-2000.0,0.00022586,2]
[361750624,1747755055788,-1091.47,0.0002259,5]
[361750625,1747755055797,-881.98429,0.00022603,2]
[361750626,1747755055807,-2000.0,0.00022616,2]
[361750627,1747755055817,-192.39095888,0.00022616,2]
[361750628,1747755055827,-2000.0,0.00022616,2]
[361750629,1747755055837,-1050.39531249,0.00022616,2]
[361750630,1747755055847,-2000.0,0.00022616,2]
[361750631,1747755055856,-2000.0,0.00022616,2]
[361750632,1747755055866,-1611.10400927,0.00022616,2]
[361750633,1747755055876,-2500.0,0.00022637,2]
[361750634,1747755055887,-151.0,0.0002269,7]
[361750635,1747755055896,-1091.47,0.0002269,2]
[361750636,1747755055906,-151.0,0.00022739,7]
[361750637,1747755055915,-434.83,0.00022739,2]
[361750638,1747755055925,-443.7,0.00022739,2]
[361750639,1747755055935,-1104.08432089,0.00022739,2]
[361750640,1747755055944,-317.75129122,0.00022739,2]
[361750641,1747755055954,-786.04909138,0.00022739,2]
[361750642,1747755055966,-461.12999591,0.00022739,2]
[361750643,1747755055976,-485.17323772,0.00022739,2]
[361750644,1747755055986,-883.77929181,0.00022739,2]
[361750645,1747755055997,-568.6919483,0.00022739,2]
[361750646,1747755056007,-518.5603474,0.00022739,2]
[361750647,1747755056016,-718.56,0.00022739,2]
[361750648,1747755056026,-5283.55570706,0.00022739,2]
[361750649,1747755056036,-257.95705145,0.00022739,2]
[361750650,1747755056046,-980.89579538,0.00022739,2]
[361750651,1747755056056,-3236.12059538,0.00022739,2]
[361750652,1747755056066,-1298.27697192,0.00022739,2]
[361750653,1747755056076,-999.67690315,0.00022739,2]
[361750654,1747755056086,-1159.85238805,0.00022739,2]
[361750655,1747755056097,-939.94134606,0.00022739,2]
[361750656,1747755056108,-672.01,0.00022739,2]
[361750657,1747755056118,-1091.47,0.0002279,6]
[361750658,1747755056129,-306.0,0.00022795,2]
[361750659,1747755056139,-153.0,0.00022795,2]
[361750660,1747755056149,-6242.69140111,0.00022797,7]
[361750661,1747755056159,-4000.0,0.00022857,4]
[361750662,1747755056169,-151.0,0.00022865,7]
[361750663,1747755056179,-151.0,0.00022879,7]
[361750664,1747755056189,-1091.47,0.0002289,3]
[361750665,1747755056200,-151.77501222,0.000229,2]
[361750666,1747755056211,-200.0,0.0002292,8]
[361750667,1747755056222,-2000.0,0.00022932,2]
[361750668,1747755056232,-2000.0,0.00022932,2]
[361750669,1747755056243,-1640.94585575,0.00022932,2]
[361750670,1747755056253,-160.0,0.00022962,7]
[361750671,1747755056264,-290.2445569,0.00022962,5]
[361750672,1747755056275,-1091.47,0.0002299,2]
[361750673,1747755056285,-9691.76379262,0.00023,2]
[361750674,1747755056429,-405.91937752,0.00016438,2]
[361750675,1747755056439,-250.0,0.00018311,2]
[361750676,1747755056450,-66.96457448,0.00023,2]
[361750677,1747755056462,-418.70153219,0.00023,2]
[361750678,1747755056474,-24319.93779139,0.00023,2]
[361750679,1747755056486,-2099.85863507,0.00023,2]
[361750680,1747755056498,-2561.80830114,0.00023,2]
[361750681,1747755056510,-25709.33404698,0.00023,2]
[361750682,1747755056522,-416.351307,0.00023,2]
[361750683,1747755056533,-4063.69772856,0.00023,2]
[361750684,1747755056588,-400.0,0.00016438,2]
[361750685,1747755056598,-707.0,0.00018324,2]
[361750686,1747755056608,-2016.03851858,0.00023,2]
[361750687,1747755056621,-12711.81305616,0.00023,2]
[361750688,1747755056630,-3015.69034028,0.00023,2]
[361750689,1747755056641,-34451.49157216,0.00023,8]
[361750690,1747755056740,-22744.81040652,0.00023,8]
[361750691,1747755056751,-500.0,0.00023,30]
[361750692,1747755056760,-6287.0,0.00023,2]
[361750693,1747755056770,-5000.0,0.00023,2]
[361750694,1747755056781,-360.789444,0.00023,2]
[361750695,1747755056791,-264.758004,0.00023,7]
[361750696,1747755056801,-151.0,0.00023,7]
[361750697,1747755056811,-151.0,0.00023,7]
[361750698,1747755056821,-220.26015,0.00023,7]
[361750699,1747755056831,-160.054512,0.00023,7]
[361750700,1747755056841,-160.054512,0.00023,7]
[361750701,1747755056851,-160.0,0.00023,3]
[361750702,1747755056861,-151.0,0.00023,7]
[361750703,1747755056871,-200.0,0.00023,2]
[361750704,1747755056881,-201.72431051,0.00023,2]
[361750705,1747755056891,-422.65292303,0.00023,3]
[361750706,1747755056901,-176.0,0.00023,7]
[361750707,1747755056911,-160.0,0.00023,3]
[361750708,1747755056922,-5000.0,0.00023026,2]
[361750709,1747755056932,-153.0,0.00023068,2]
[361750710,1747755056942,-153.0,0.00023068,2]
[361750711,1747755056952,-153.0,0.00023068,2]
[361750712,1747755056961,-153.0,0.00023068,2]
[361750713,1747755056971,-153.0,0.00023068,2]
[361750714,1747755056981,-1091.47,0.0002309,3]
[361750715,1747755056991,-6242.69140111,0.00023107,8]
[361750716,1747755057001,-1821.18426808,0.00023133,2]
[361750717,1747755057011,-2742.78457057,0.00023133,2]
[361750718,1747755057055,-178.86425777,0.00016438,2]